fUST/lending_fUST_20240610
["ID","MTS","AMOUNT","RATE_DAILY","PERIOD"]
[328941846,1718017865545,-500.0,0.00021643,2]
[328941847,1718017865560,-581.41,0.00021643,2]
[328941848,1718017865575,-743.32,0.00021643,2]
[328941849,1718017865590,-1659.56,0.00021643,2]
[328941850,1718017865606,-942.18,0.00021643,2]
[328941851,1718017865622,-1793.3,0.00021643,2]
[328941852,1718017865637,-883.56,0.00021643,2]
[328941853,1718017865652,-500.0,0.00021643,2]
[328941854,1718017865668,-912.13,0.00021643,2]
[328941855,1718017865683,-500.0,0.00021643,2]
[328941856,1718017865699,-2898.78,0.00021643,2]
[328941857,1718017865715,-3207.7,0.00021643,2]
[328941858,1718017865729,-500.0,0.00021643,2]
[328941859,1718017865744,-500.0,0.00021643,2]
[328941860,1718017865759,-575.55,0.00021643,2]
[328941861,1718017865773,-619.3,0.00021643,2]
[328941862,1718017865788,-500.0,0.00021643,2]
[328941863,1718017865803,-1228.65,0.00021643,2]
[328941864,1718017865898,-1301.62,0.00021643,2]
[328941865,1718017865911,-612.58982286,0.00021643,2]
[328941866,1718017865922,-500.0,0.00021643,2]
[328941867,1718017865932,-500.0,0.00021643,2]
[328941868,1718017865944,-1649.78,0.00021643,2]
[328941869,1718017865954,-500.0,0.00021643,2]
[328941870,1718017865964,-238.3,0.00021833,5]
[328941871,1718017865973,-2036.15094811,0.00021916,2]
[328941872,1718017865984,-1132.56,0.00021917,2]
[328941873,1718017865993,-559.44,0.00021917,2]
[328941874,1718017866003,-605.11,0.00021917,4]
[328941875,1718017866013,-501.41,0.00021917,2]
[328941876,1718017866024,-500.0,0.00021917,2]
[328941877,1718017866034,-500.0,0.00021917,2]
[328941878,1718017866043,-500.0,0.00021917,2]
[328941879,1718017866053,-500.0,0.00021917,2]
[328941880,1718017866062,-1535.29,0.00021917,2]
[328941881,1718017866072,-500.0,0.00021917,2]
[328941882,1718017866081,-570.25,0.00021917,2]
[328941883,1718017866091,-640.85,0.00021917,2]
[328941884,1718017866100,-500.0,0.00021917,2]
[328941885,1718017866109,-1349.56,0.00021917,2]
[328941886,1718017866119,-500.0,0.00021917,2]
[328941887,1718017866129,-594.1,0.00021917,2]
[328941888,1718017866138,-1198.99,0.00021917,2]
[328941889,1718017866148,-500.0,0.00021917,2]
[328941890,1718017866158,-1205.29,0.00021917,2]
[328941891,1718017866169,-1488.6,0.00021917,2]
[328941892,1718017866179,-735.49,0.00021917,2]
[328941893,1718017866189,-550.47,0.00021917,2]
[328941894,1718017866199,-810.63,0.00021917,2]
[328941895,1718017866209,-500.0,0.00021917,2]
[328941896,1718017866220,-249.8,0.00021917,2]
[328941897,1718017866230,-249.8,0.00021917,2]
[328941898,1718017866241,-249.8,0.00021917,2]
[328941899,1718017866250,-249.8,0.00021917,2]
[328941900,1718017866260,-249.8,0.00021917,2]
[328941901,1718017866270,-249.8,0.00021917,2]
[328941902,1718017866280,-249.8,0.00021917,2]
[328941903,1718017866290,-249.8,0.00021917,2]
[328941904,1718017866300,-249.8,0.00021917,2]
[328941905,1718017866309,-249.8,0.00021917,2]
[328941906,1718017866319,-249.8,0.00021917,2]
[328941907,1718017866329,-500.0,0.00021917,2]
[328941908,1718017866339,-1112.03,0.00021917,2]
[328941909,1718017866349,-523.01,0.00021917,2]
[328941910,1718017866359,-1567.95,0.00021917,2]
[328941911,1718017866368,-500.0,0.00021917,2]
[328941912,1718017866379,-500.0,0.00021917,2]
[328941913,1718017866388,-699.03,0.00021917,2]
[328941914,1718017866399,-746.26,0.00021917,2]
[328941915,1718017866409,-625.63,0.00021917,2]
[328941916,1718017866418,-500.0,0.00021917,2]
[328941917,1718017866428,-929.91,0.00021917,2]
[328941918,1718017866439,-500.0,0.00021917,2]
[328941919,1718017866449,-1607.76,0.00021917,2]
[328941920,1718017866458,-500.0,0.00021917,2]
[328941921,1718017866468,-500.0,0.00021917,2]
[328941922,1718017866478,-645.19213258,0.00021917,2]
[328941923,1718017866488,-1323.18,0.00021917,2]
[328941924,1718017866498,-500.0,0.00021917,2]
[328941925,1718017866507,-500.0,0.00021917,2]
[328941926,1718017866518,-1044.77,0.00021917,2]
[328941927,1718017866529,-2042.85,0.00021917,2]
[328941928,1718017866539,-312.29232418,0.00021917,2]
[328941929,1718017866548,-500.0,0.00021917,2]
[328941930,1718017866558,-500.0,0.00021917,2]
[328941931,1718017866569,-500.0,0.00021917,2]
[328941932,1718017866579,-500.0,0.00021917,2]
[328941933,1718017866590,-500.0,0.00021917,2]
[328941934,1718017866600,-500.0,0.00021917,2]
[328941935,1718017866610,-894.2,0.00021917,2]
[328941936,1718017866620,-500.0,0.00021917,2]
[328941938,1718017866629,-633.2,0.00021917,2]
[328941939,1718017866641,-500.0,0.00021917,2]
[328941940,1718017866651,-500.0,0.00021917,2]
[328941942,1718017866661,-500.0,0.00021917,2]
[328941943,1718017866671,-525.12138007,0.00021917,2]
[328941944,1718017866680,-500.0,0.00021917,2]
[328941945,1718017866691,-1885.28,0.00021917,2]
[328941946,1718017866700,-500.0,0.00021917,2]
[328941947,1718017866710,-500.0,0.00021917,2]
[328941948,1718017866720,-412.88009459,0.00021917,2]
[328941949,1718017866730,-2127.33,0.00021917,2]
[328941950,1718017866740,-500.0,0.00021917,2]
[328941951,1718017866750,-541.01,0.00021917,2]
[328941952,1718017866761,-2259.44,0.00021917,2]
[328941953,1718017866771,-500.0,0.00021917,2]
[328941954,1718017866781,-1295.58,0.00021917,2]
[328941955,1718017866792,-500.94,0.00021917,2]
[328941956,1718017866802,-500.0,0.00021917,2]
[328941957,1718017866812,-500.0,0.00021917,2]
[328941958,1718017866822,-1526.46,0.00021917,2]
[328941959,1718017866831,-500.0,0.00021917,2]
[328941960,1718017866841,-687.81,0.00021917,2]
[328941961,1718017866850,-1005.98,0.00021917,2]
[328941962,1718017866924,-500.0,0.00021917,2]
[328941963,1718017866935,-1149.01,0.00021917,2]
[328941964,1718017866948,-1037.55,0.00021917,2]
[328941965,1718017866959,-1219.19,0.00021917,2]
[328941966,1718017866970,-500.0,0.00021917,2]
[328941967,1718017866980,-617.04,0.00021917,2]
[328941968,1718017866990,-771.11,0.00021917,2]
[328941969,1718017867000,-500.0,0.00021917,2]
[328941970,1718017867010,-574.48,0.00021917,2]
[328941971,1718017867019,-623.45,0.00021917,2]
[328941972,1718017867029,-500.0,0.00021917,2]
[328941973,1718017867039,-500.0,0.00021917,2]
[328941974,1718017867048,-500.0,0.00021917,2]
[328941975,1718017867058,-745.57,0.00021917,2]
[328941976,1718017867069,-500.0,0.00021917,2]
[328941977,1718017867079,-2541.57,0.00021917,2]
[328941978,1718017867089,-718.15,0.00021917,2]
[328941979,1718017867099,-1718.23,0.00021917,2]
[328941980,1718017867109,-500.0,0.00021917,2]
[328941981,1718017867118,-500.0,0.00021917,2]
[328941982,1718017867128,-1630.78,0.00021917,2]
[328941983,1718017867137,-500.0,0.00021917,2]
[328941984,1718017867148,-2581.48,0.00021917,2]
[328941985,1718017867159,-500.0,0.00021917,2]
[328941986,1718017867170,-1854.18,0.00021917,2]
[328941987,1718017867179,-974.29,0.00021917,2]
[328941988,1718017867189,-500.0,0.00021917,2]
[328941989,1718017867199,-500.0,0.00021917,2]
[328941990,1718017867209,-581.41,0.00021917,2]
[328941991,1718017867220,-743.32,0.00021917,2]
[328941992,1718017867230,-1659.56,0.00021917,2]
[328941993,1718017867240,-942.18,0.00021917,2]
[328941994,1718017867250,-1793.3,0.00021917,2]
[328941995,1718017867260,-883.56,0.00021917,2]
[328941996,1718017867270,-500.0,0.00021917,2]
[328941997,1718017867279,-912.13,0.00021917,2]
[328941998,1718017867290,-500.0,0.00021917,2]
[328941999,1718017867299,-2898.78,0.00021917,2]
[328942000,1718017867309,-3207.7,0.00021917,2]
[328942001,1718017867319,-500.0,0.00021917,2]
[328942002,1718017867330,-500.0,0.00021917,2]
[328942003,1718017867340,-575.55,0.00021917,2]
[328942004,1718017867350,-619.3,0.00021917,2]
[328942005,1718017867360,-500.0,0.00021917,2]
[328942006,1718017867371,-1228.65,0.00021917,2]
[328942007,1718017867382,-1301.62,0.00021917,2]
[328942008,1718017867393,-500.0,0.00021917,2]
[328942009,1718017867402,-500.0,0.00021917,2]
[328942010,1718017867412,-1649.78,0.00021917,2]
[328942011,1718017867423,-500.0,0.00021917,2]
[328942012,1718017867433,-166.666666,0.00021918,2]
[328942013,1718017867444,-343.69873197,0.00021946,2]
[328942014,1718017867456,-151.47536669,0.00022,2]
[328942015,1718017867466,-1000.0,0.00022,5]
[328942016,1718017867476,-60891.10294391,0.00022,2]
[328942017,1718017867486,-6297.0,0.00022,3]
[328942018,1718017867497,-823.0,0.00022127,2]
[328942019,1718017867507,-238.3,0.00022149,5]
[328942020,1718017867518,-1132.56,0.00022191,2]
[328942021,1718017867528,-559.44,0.00022191,2]
[328942022,1718017867538,-605.11,0.00022191,4]
[328942023,1718017867549,-501.41,0.00022191,2]
[328942024,1718017867559,-500.0,0.00022191,2]
[328942025,1718017867569,-500.0,0.00022191,2]
[328942026,1718017867580,-500.0,0.00022191,2]
[328942027,1718017867590,-500.0,0.00022191,2]
[328942028,1718017867600,-1535.29,0.00022191,2]
[328942029,1718017867610,-500.0,0.00022191,2]
[328942030,1718017867620,-570.25,0.00022191,2]
[328942031,1718017867630,-640.85,0.00022191,2]
[328942032,1718017867641,-361.50840139,0.00022191,2]
[328942033,1718017867651,-1349.56,0.00022191,2]
[328942034,1718017867661,-246.44347823,0.00022191,2]
[328942035,1718017867671,-594.1,0.00022191,2]
[328942036,1718017867681,-1198.99,0.00022191,2]
[328942037,1718017867692,-500.0,0.00022191,2]
[328942038,1718017867703,-1205.29,0.00022191,2]
[328942039,1718017867714,-1488.6,0.00022191,2]
[328942040,1718017867724,-735.49,0.00022191,2]
[328942041,1718017867735,-550.47,0.00022191,2]
[328942042,1718017867745,-810.63,0.00022191,2]
[328942043,1718017867756,-396.28681019,0.00022191,2]
[328942044,1718017867767,-500.0,0.00022191,2]
[328942045,1718017867777,-249.8,0.00022191,2]
[328942046,1718017867787,-1112.03,0.00022191,2]
[328942047,1718017867797,-523.01,0.00022191,2]
[328942048,1718017867807,-1567.95,0.00022191,2]
[328942049,1718017867818,-500.0,0.00022191,2]
[328942050,1718017867829,-500.0,0.00022191,2]
[328942051,1718017867839,-699.03,0.00022191,2]
[328942052,1718017867849,-746.26,0.00022191,2]
[328942053,1718017867862,-625.63,0.00022191,2]
[328942054,1718017867873,-500.0,0.00022191,2]
[328942055,1718017867883,-929.91,0.00022191,2]
[328942056,1718017867893,-500.0,0.00022191,2]
[328942057,1718017867903,-1607.76,0.00022191,2]
[328942058,1718017867913,-500.0,0.00022191,2]
[328942059,1718017867923,-500.0,0.00022191,2]
[328942060,1718017867932,-1323.18,0.00022191,2]
[328942061,1718017867945,-444.15314908,0.00022191,2]
[328942062,1718017867954,-500.0,0.00022191,2]
[328942063,1718017867965,-1044.77,0.00022191,2]
[328942064,1718017867975,-2042.85,0.00022191,2]
[328942065,1718017867986,-500.0,0.00022191,2]
[328942066,1718017867996,-500.0,0.00022191,2]
[328942067,1718017868006,-500.0,0.00022191,2]
[328942068,1718017868016,-500.0,0.00022191,2]
[328942069,1718017868028,-500.0,0.00022191,2]
[328942070,1718017868038,-500.0,0.00022191,2]
[328942071,1718017868048,-894.2,0.00022191,2]
[328942072,1718017868059,-500.0,0.00022191,2]
[328942073,1718017868069,-633.2,0.00022191,2]
[328942074,1718017868080,-500.0,0.00022191,2]
[328942075,1718017868091,-500.0,0.00022191,2]
[328942076,1718017868102,-500.0,0.00022191,2]
[328942077,1718017868112,-500.0,0.00022191,2]
[328942078,1718017868123,-1885.28,0.00022191,2]
[328942079,1718017868134,-500.0,0.00022191,2]
[328942080,1718017868144,-238.13000048,0.00022191,2]
[328942081,1718017868156,-2127.33,0.00022191,2]
[328942082,1718017868166,-500.0,0.00022191,2]
[328942083,1718017868176,-541.01,0.00022191,2]
[328942084,1718017868187,-2259.44,0.00022191,2]
[328942085,1718017868199,-500.0,0.00022191,2]
[328942086,1718017868210,-1295.58,0.00022191,2]
[328942087,1718017868220,-500.94,0.00022191,2]
[328942088,1718017868231,-500.0,0.00022191,2]
[328942089,1718017868242,-500.0,0.00022191,2]
[328942090,1718017868253,-1526.46,0.00022191,2]
[328942091,1718017868263,-500.0,0.00022191,2]
[328942092,1718017868274,-687.81,0.00022191,2]
[328942093,1718017868284,-1005.98,0.00022191,2]
[328942094,1718017868294,-500.0,0.00022191,2]
[328942095,1718017868305,-1149.01,0.00022191,2]
[328942096,1718017868315,-1037.55,0.00022191,2]
[328942097,1718017868326,-1219.19,0.00022191,2]
[328942098,1718017868338,-500.0,0.00022191,2]
[328942099,1718017868348,-617.04,0.00022191,2]
[328942100,1718017868358,-771.11,0.00022191,2]
[328942101,1718017868369,-500.0,0.00022191,2]
[328942102,1718017868379,-574.48,0.00022191,2]
[328942103,1718017868389,-623.45,0.00022191,2]
[328942104,1718017868399,-500.0,0.00022191,2]
[328942105,1718017868409,-500.0,0.00022191,2]
[328942106,1718017868419,-500.0,0.00022191,2]
[328942107,1718017868429,-745.57,0.00022191,2]
[328942108,1718017868442,-500.0,0.00022191,2]
[328942109,1718017868452,-2541.57,0.00022191,2]
[328942110,1718017868462,-718.15,0.00022191,2]
[328942111,1718017868472,-1718.23,0.00022191,2]
[328942112,1718017868483,-500.0,0.00022191,2]
[328942113,1718017868493,-500.0,0.00022191,2]
[328942114,1718017868503,-1630.78,0.00022191,2]
[328942115,1718017868513,-500.0,0.00022191,2]
[328942116,1718017868523,-2581.48,0.00022191,2]
[328942117,1718017868534,-500.0,0.00022191,2]
[328942118,1718017868544,-1854.18,0.00022191,2]
[328942119,1718017868554,-974.29,0.00022191,2]
[328942120,1718017868564,-500.0,0.00022191,2]
[328942121,1718017868575,-500.0,0.00022191,2]
[328942122,1718017868585,-581.41,0.00022191,2]
[328942123,1718017868595,-743.32,0.00022191,2]
[328942124,1718017868605,-1659.56,0.00022191,2]
[328942125,1718017868615,-942.18,0.00022191,2]
[328942126,1718017868625,-1793.3,0.00022191,2]
[328942127,1718017868636,-883.56,0.00022191,2]
[328942128,1718017868646,-500.0,0.00022191,2]
[328942129,1718017868656,-912.13,0.00022191,2]
[328942130,1718017868667,-569.98924946,0.00022191,2]
[328942131,1718017868677,-2898.78,0.00022191,2]
[328942132,1718017868687,-3207.7,0.00022191,2]
[328942133,1718017868710,-500.0,0.00022191,2]
[328942134,1718017868722,-500.0,0.00022191,2]
[328942135,1718017868733,-575.55,0.00022191,2]
[328942136,1718017868743,-619.3,0.00022191,2]
[328942137,1718017868754,-500.0,0.00022191,2]
[328942138,1718017868765,-1228.65,0.00022191,2]
[328942139,1718017868777,-1301.62,0.00022191,2]
[328942140,1718017868787,-500.0,0.00022191,2]
[328942141,1718017868798,-500.0,0.00022191,2]
[328942142,1718017868808,-1649.78,0.00022191,2]
[328942143,1718017868819,-500.0,0.00022191,2]
[328942144,1718017868829,-169.352305,0.00022294,2]
[328942145,1718017868840,-1070.45763977,0.000223,2]
[328942146,1718017868851,-508.0,0.000224,2]
[328942147,1718017868864,-166.666666,0.00022431,2]
[328942148,1718017868876,-1132.56,0.00022465,2]
[328942149,1718017868887,-559.44,0.00022465,2]
[328942150,1718017868898,-605.11,0.00022465,4]
[328942151,1718017868910,-501.41,0.00022465,2]
[328942152,1718017868921,-500.0,0.00022465,2]
[328942153,1718017868931,-500.0,0.00022465,2]
[328942154,1718017868944,-500.0,0.00022465,2]
[328942155,1718017868954,-500.0,0.00022465,2]
[328942156,1718017868965,-1535.29,0.00022465,2]
[328942157,1718017868975,-500.0,0.00022465,2]
[328942158,1718017868986,-570.25,0.00022465,2]
[328942159,1718017868997,-640.85,0.00022465,2]
[328942160,1718017869008,-1349.56,0.00022465,2]
[328942161,1718017869019,-594.1,0.00022465,2]
[328942162,1718017869030,-1198.99,0.00022465,2]
[328942163,1718017869041,-500.0,0.00022465,2]
[328942164,1718017869052,-1205.29,0.00022465,2]
[328942165,1718017869063,-1488.6,0.00022465,2]
[328942166,1718017869074,-735.49,0.00022465,2]
[328942167,1718017869085,-550.47,0.00022465,2]
[328942168,1718017869097,-810.63,0.00022465,2]
[328942169,1718017869108,-500.0,0.00022465,2]
[328942170,1718017869119,-249.8,0.00022465,2]
[328942171,1718017869130,-1112.03,0.00022465,2]
[328942172,1718017869141,-523.01,0.00022465,2]
[328942173,1718017869152,-1567.95,0.00022465,2]
[328942174,1718017869164,-364.9172706,0.00022465,2]
[328942175,1718017869175,-500.0,0.00022465,2]
[328942176,1718017869187,-699.03,0.00022465,2]
[328942177,1718017869325,-746.26,0.00022465,2]
[328942178,1718017869335,-625.63,0.00022465,2]
[328942179,1718017869346,-500.0,0.00022465,2]
[328942180,1718017869356,-929.91,0.00022465,2]
[328942181,1718017869368,-500.0,0.00022465,2]
[328942182,1718017869378,-1607.76,0.00022465,2]
[328942183,1718017869389,-500.0,0.00022465,2]
[328942184,1718017869399,-500.0,0.00022465,2]
[328942185,1718017869410,-1323.18,0.00022465,2]
[328942186,1718017869420,-500.0,0.00022465,2]
[328942187,1718017869431,-1044.77,0.00022465,2]
[328942188,1718017869442,-2042.85,0.00022465,2]
[328942189,1718017869453,-500.0,0.00022465,2]
[328942190,1718017869464,-501.96535637,0.00022465,2]
[328942191,1718017869474,-500.0,0.00022465,2]
[328942192,1718017869483,-500.0,0.00022465,2]
[328942193,1718017869494,-500.0,0.00022465,2]
[328942194,1718017869504,-205.46331933,0.00022465,2]
[328942195,1718017869513,-894.2,0.00022465,2]
[328942196,1718017869523,-500.0,0.00022465,2]
[328942197,1718017869534,-633.2,0.00022465,2]
[328942198,1718017869548,-500.0,0.00022465,2]
[328942199,1718017869559,-500.0,0.00022465,2]
[328942200,1718017869569,-500.0,0.00022465,2]
[328942201,1718017869579,-500.0,0.00022465,2]
[328942202,1718017869590,-1885.28,0.00022465,2]
[328942203,1718017869601,-500.0,0.00022465,2]
[328942204,1718017869612,-2127.33,0.00022465,2]
[328942205,1718017869623,-500.0,0.00022465,2]
[328942206,1718017869634,-541.01,0.00022465,2]
[328942207,1718017869645,-2259.44,0.00022465,2]
[328942208,1718017869655,-500.0,0.00022465,2]
[328942209,1718017869666,-1295.58,0.00022465,2]
[328942210,1718017869677,-500.94,0.00022465,2]
[328942211,1718017869687,-500.0,0.00022465,2]
[328942212,1718017869698,-500.0,0.00022465,2]
[328942213,1718017869707,-1526.46,0.00022465,2]
[328942214,1718017869717,-500.0,0.00022465,2]
[328942215,1718017869728,-687.81,0.00022465,2]
[328942216,1718017869738,-1005.98,0.00022465,2]
[328942217,1718017869749,-500.0,0.00022465,2]
[328942218,1718017869762,-1149.01,0.00022465,2]
[328942219,1718017869773,-1037.55,0.00022465,2]
[328942220,1718017869784,-1219.19,0.00022465,2]
[328942221,1718017869795,-500.0,0.00022465,2]
[328942222,1718017869806,-617.04,0.00022465,2]
[328942223,1718017869816,-771.11,0.00022465,2]
[328942224,1718017869827,-500.0,0.00022465,2]
[328942225,1718017869837,-574.48,0.00022465,2]
[328942226,1718017869847,-623.45,0.00022465,2]
[328942227,1718017869858,-500.0,0.00022465,2]
[328942228,1718017869872,-500.0,0.00022465,2]
[328942229,1718017869882,-500.0,0.00022465,2]
[328942230,1718017869894,-745.57,0.00022465,2]
[328942231,1718017869907,-406.67861161,0.00022465,2]
[328942232,1718017869918,-2541.57,0.00022465,2]
[328942233,1718017869929,-718.15,0.00022465,2]
[328942234,1718017869942,-1718.23,0.00022465,2]
[328942235,1718017869952,-408.02463795,0.00022465,2]
[328942236,1718017869963,-500.0,0.00022465,2]
[328942237,1718017869974,-1630.78,0.00022465,2]
[328942238,1718017869985,-500.0,0.00022465,2]
[328942239,1718017869996,-2581.48,0.00022465,2]
[328942240,1718017870007,-530.43445442,0.00022465,2]
[328942241,1718017870018,-1854.18,0.00022465,2]
[328942242,1718017870028,-974.29,0.00022465,2]
[328942243,1718017870039,-500.0,0.00022465,2]
[328942244,1718017870051,-500.0,0.00022465,2]
[328942245,1718017870061,-581.41,0.00022465,2]
[328942246,1718017870072,-743.32,0.00022465,2]
[328942247,1718017870083,-1659.56,0.00022465,2]
[328942248,1718017870093,-942.18,0.00022465,2]
[328942249,1718017870104,-1793.3,0.00022465,2]
[328942250,1718017870115,-883.56,0.00022465,2]
[328942251,1718017870126,-500.0,0.00022465,2]
[328942252,1718017870137,-912.13,0.00022465,2]
[328942253,1718017870147,-2898.78,0.00022465,2]
[328942254,1718017870158,-3207.7,0.00022465,2]
[328942255,1718017870168,-500.0,0.00022465,2]
[328942256,1718017870179,-500.0,0.00022465,2]
[328942257,1718017870189,-575.55,0.00022465,2]
[328942258,1718017870200,-619.3,0.00022465,2]
[328942259,1718017870211,-238.3,0.00022465,5]
[328942260,1718017870222,-500.0,0.00022465,2]
[328942261,1718017870233,-1228.65,0.00022465,2]
[328942262,1718017870243,-1301.62,0.00022465,2]
[328942263,1718017870253,-500.0,0.00022465,2]
[328942264,1718017870264,-169.70165084,0.00022465,2]
[328942265,1718017870274,-1649.78,0.00022465,2]
[328942266,1718017870284,-500.0,0.00022465,2]
[328942267,1718017870294,-620.0017992,0.0002248,2]
[328942268,1718017870304,-499.0,0.00022574,2]
[328942269,1718017870313,-492.0,0.000226,2]
[328942270,1718017870323,-1794.04249383,0.000226,7]
[328942271,1718017870333,-823.0,0.00022602,2]
[328942272,1718017870344,-1132.56,0.00022739,2]
[328942273,1718017870354,-559.44,0.00022739,2]
[328942274,1718017870364,-605.11,0.00022739,4]
[328942275,1718017870374,-501.41,0.00022739,2]
[328942276,1718017870383,-500.0,0.00022739,2]
[328942277,1718017870393,-500.0,0.00022739,2]
[328942278,1718017870403,-500.0,0.00022739,2]
[328942279,1718017870413,-500.0,0.00022739,2]
[328942280,1718017870422,-1535.29,0.00022739,2]
[328942281,1718017870432,-500.0,0.00022739,2]
[328942282,1718017870442,-570.25,0.00022739,2]
[328942283,1718017870451,-640.85,0.00022739,2]
[328942284,1718017870460,-1349.56,0.00022739,2]
[328942285,1718017870470,-594.1,0.00022739,2]
[328942286,1718017870479,-1198.99,0.00022739,2]
[328942287,1718017870488,-173.82094932,0.00022739,2]
[328942288,1718017870498,-1205.29,0.00022739,2]
[328942289,1718017870508,-1488.6,0.00022739,2]
[328942290,1718017870518,-735.49,0.00022739,2]
[328942291,1718017870528,-550.47,0.00022739,2]
[328942292,1718017870538,-810.63,0.00022739,2]
[328942293,1718017870548,-500.0,0.00022739,2]
[328942294,1718017870558,-249.8,0.00022739,2]
[328942295,1718017870568,-1112.03,0.00022739,2]
[328942296,1718017870578,-523.01,0.00022739,2]
[328942297,1718017870588,-1567.95,0.00022739,2]
[328942298,1718017870599,-326.31353295,0.00022739,2]
[328942299,1718017870610,-699.03,0.00022739,2]
[328942300,1718017870620,-746.26,0.00022739,2]
[328942301,1718017870630,-625.63,0.00022739,2]
[328942302,1718017870640,-500.0,0.00022739,2]
[328942303,1718017870650,-929.91,0.00022739,2]
[328942304,1718017870659,-500.0,0.00022739,2]
[328942305,1718017870669,-1607.76,0.00022739,2]
[328942306,1718017870679,-500.0,0.00022739,2]
[328942307,1718017870689,-500.0,0.00022739,2]
[328942308,1718017870699,-1323.18,0.00022739,2]
[328942309,1718017870709,-500.0,0.00022739,2]
[328942310,1718017870719,-1044.77,0.00022739,2]
[328942311,1718017870729,-2042.85,0.00022739,2]
[328942312,1718017870740,-500.0,0.00022739,2]
[328942313,1718017870750,-500.0,0.00022739,2]
[328942314,1718017870760,-500.0,0.00022739,2]
[328942315,1718017870771,-500.0,0.00022739,2]
[328942316,1718017870781,-894.2,0.00022739,2]
[328942317,1718017870791,-643.67851361,0.00022739,2]
[328942318,1718017870802,-633.2,0.00022739,2]
[328942319,1718017870812,-307.45743825,0.00022739,2]
[328942320,1718017870822,-500.0,0.00022739,2]
[328942321,1718017870833,-500.0,0.00022739,2]
[328942322,1718017870842,-500.0,0.00022739,2]
[328942323,1718017870852,-1885.28,0.00022739,2]
[328942324,1718017870866,-500.0,0.00022739,2]
[328942325,1718017870877,-2127.33,0.00022739,2]
[328942326,1718017870887,-500.0,0.00022739,2]
[328942327,1718017870899,-541.01,0.00022739,2]
[328942328,1718017870909,-2259.44,0.00022739,2]
[328942329,1718017870920,-500.0,0.00022739,2]
[328942330,1718017870931,-1295.58,0.00022739,2]
[328942331,1718017870944,-500.94,0.00022739,2]
[328942332,1718017870955,-500.0,0.00022739,2]
[328942333,1718017870965,-500.0,0.00022739,2]
[328942334,1718017870975,-500.0,0.00022739,2]
[328942335,1718017870985,-1526.46,0.00022739,2]
[328942336,1718017870995,-687.81,0.00022739,2]
[328942337,1718017871004,-1005.98,0.00022739,2]
[328942338,1718017871023,-500.0,0.00022739,2]
[328942339,1718017871035,-1149.01,0.00022739,2]
[328942340,1718017871047,-1037.55,0.00022739,2]
[328942341,1718017871057,-1219.19,0.00022739,2]
[328942342,1718017871068,-500.0,0.00022739,2]
[328942343,1718017871077,-617.04,0.00022739,2]
[328942344,1718017871087,-771.11,0.00022739,2]
[328942345,1718017871097,-500.0,0.00022739,2]
[328942346,1718017871106,-574.48,0.00022739,2]
[328942347,1718017871116,-623.45,0.00022739,2]